bitfinex/quotes_ETHUSD_20250214
["timestamp","ask_amount","ask_price","bid_price","bid_amount"]
[1739545442598,4.46979,2719.1,2718.6,3.67831]
[1739545442801,0.792,2719.4,2718.6,0.03678215]
[1739545442977,4.46934,2719.4,2718.7,3.67822]
[1739545443177,3.67742,2719.3,2718.9,0.7878]
[1739545443604,7.35497,2719.3,2718.9,0.7878]
[1739545443903,3.67756,2719.2,2718.9,0.7878]
[1739545444700,3.67747,2719.3,2718.9,0.7878]
[1739545445005,0.792,2719.4,2718.9,0.7878]
[1739545445509,3.67758,2719.2,2718.9,0.7878]
[1739545445731,3.67815,2718.8,2718.5,8.75]
[1739545445887,3.6782,2718.8,2718.5,8.75]
[1739545446059,3.6783,2718.7,2718.5,8.75]
[1739545446262,3.6782,2718.8,2718.3,6.179556]
[1739545446459,3.6782,2718.8,2718.3,4.49003]
[1739545447208,3.67817,2718.8,2718.3,4.49003]
[1739545447891,3.67817,2718.8,2718.4,3.67862]
[1739545448084,3.67805,2718.9,2718.4,3.67862]
[1739545448281,3.67809,2718.8,2718.4,4.127562]
[1739545448519,0.792,2719.4,2718.4,0.449002]
[1739545448719,3.67801,2718.9,2718.4,4.127632]
[1739545449020,3.67815,2718.8,2718.4,0.449002]
[1739545449326,3.67815,2718.8,2718.3,4.49016]
[1739545449727,3.67815,2718.8,2718.3,0.8114]
[1739545450059,3.67815,2718.8,2718.3,4.49014]
[1739545450337,3.67836,2718.6,2718.0,9.5614]
[1739545450636,3.67863,2718.4,2717.7,0.8114]
[1739545450846,3.67886,2718.3,2717.8,3.67936]
[1739545451199,3.67905,2718.1,2717.7,0.8114]
[1739545451395,3.67937,2717.9,2717.4,3.67998]
[1739545451639,3.67937,2717.9,2717.3,12.43004]
[1739545451807,3.67967,2717.7,2717.4,1.324144]
[1739545452145,3.67978,2717.6,2717.1,3.68033]
[1739545452344,4.49137,2717.7,2716.9,4.49193]
[1739545452345,3.67986,2717.5,2716.9,4.49193]
[1739545452646,3.67986,2717.5,2717.0,3.68051]
[1739545452845,4.49137,2717.7,2717.1,3.68031]
[1739545453002,4.49137,2717.7,2717.0,3.68051]
[1739545453197,3.67986,2717.5,2717.0,3.68051]
[1739545453442,3.67975,2717.6,2717.1,3.68038]
[1739545454357,4.49137,2717.7,2717.1,3.68038]
[1739545454868,8.17103,2717.7,2717.1,3.68038]
[1739545455067,0.8117,2717.7,2717.1,3.68031]
[1739545455208,4.49134,2717.7,2717.2,3.68023]
[1739545455402,3.67971,2717.6,2717.1,3.68038]
[1739545455608,3.67971,2717.6,2717.0,0.55]
[1739545455852,3.67971,2717.6,2717.1,3.68036]
[1739545456065,3.67971,2717.6,2717.1,7.36067]
[1739545456370,0.8117,2717.7,2717.2,3.68023]
[1739545456662,0.8117,2718.0,2717.3,3.68002]
[1739545456805,4.39094,2718.0,2717.4,3.67989]
[1739545457013,4.39094,2718.0,2717.4,4.470881]
[1739545457207,3.67945,2717.8,2717.2,0.55]
[1739545457450,3.67982,2717.6,2716.9,3.68057]
[1739545457665,3.67987,2717.5,2716.8,12.43071]
[1739545457879,3.68021,2717.3,2716.7,4.49224]
[1739545458189,3.68021,2717.3,2716.7,4.49222]
[1739545458329,3.68021,2717.3,2716.8,3.68076]
[1739545458768,3.68027,2717.2,2716.7,0.8114]
[1739545458971,3.68021,2717.3,2716.7,4.49225]
[1739545459150,3.6802,2717.3,2716.7,6.239569]
[1739545459484,3.68059,2717.0,2716.4,0.8114]
[1739545459785,3.68059,2717.0,2716.5,3.68114]
[1739545459997,4.49216,2717.1,2716.4,4.49267]
[1739545460213,0.8117,2717.1,2716.8,3.68078]
[1739545460513,0.02749637,2717.0,2716.7,3.68086]
[1739545460670,0.8117,2717.1,2716.7,3.68082]
[1739545461003,0.8117,2717.1,2716.5,0.5575]
[1739545461185,0.7612,2717.4,2717.0,3.68039]
[1739545461709,0.7612,2717.4,2717.2,3.68025]
[1739545462469,9.51382,2717.6,2717.0,3.68043]
[1739545462813,5.834,2717.6,2717.0,4.23052]
[1739545463105,5.834,2717.6,2717.5,3.67985]
[1739545464700,0.8303,2718.4,2717.6,0.0075]
[1739545464902,0.8303,2718.7,2718.3,3.67876]
[1739545465379,0.8303,2718.7,2717.7,8.04995749]
[1739545465380,0.8303,2718.7,2718.2,3.67881]
[1739545465754,0.8303,2718.7,2718.2,7.35763]
[1739545466098,4.50853,2718.7,2718.2,3.67881]
[1739545466390,5.42817384,2718.7,2718.0,3.67912]
[1739545466598,5.40067747,2718.7,2718.1,3.67894]
[1739545466954,3.67837,2718.6,2718.1,3.67894]
[1739545467151,0.02749637,2718.5,2717.6,8.75]
[1739545467383,3.67898,2718.2,2717.6,3.67959]
[1739545467774,0.8303,2718.0,2717.4,3.67989]
[1739545468046,3.67933,2717.9,2717.2,3.68018]
[1739545468295,3.67931,2717.9,2717.3,3.68005]
[1739545468591,3.67954,2717.8,2717.3,3.68005]
[1739545468764,3.67932,2717.9,2717.3,3.68001]
[1739545469206,3.67932,2717.9,2717.4,3.67989]
[1739545469373,3.67945,2717.8,2716.9,0.55]
[1739545469705,3.70694637,2717.8,2717.1,3.68026]
[1739545469863,3.67945,2717.8,2717.1,3.68026]
[1739545470065,0.8303,2717.5,2717.0,3.68051]
[1739545470302,4.51025,2717.5,2716.9,3.68057]
[1739545470610,4.06162578,2717.4,2716.7,3.68087]
[1739545470816,4.06162578,2717.4,2716.8,3.68072]
[1739545471168,7.74170578,2717.4,2716.8,3.68072]
[1739545471368,3.68026,2717.2,2716.7,3.68087]
[1739545471571,3.68068,2716.9,2716.3,3.68136]
[1739545471803,7.729046,2717.1,2716.5,3.6812]
[1739545472013,4.048536,2717.1,2716.5,3.6812]
[1739545472205,3.68051,2717.1,2716.5,3.6812]
[1739545472360,0.8303,2717.2,2716.8,4.37037749]
[1739545472677,3.0,2717.5,2716.9,3.68058]
[1739545473009,3.68034,2717.2,2716.7,3.68089]
[1739545473158,3.68034,2717.2,2716.7,3.68085]
[1739545473762,3.68028,2717.2,2716.5,3.68111]
[1739545473965,3.68028,2717.2,2715.9,0.7774]
[1739545473966,0.8303,2717.2,2715.9,0.7774]
[1739545474192,0.8303,2716.6,2716.0,3.68188]
[1739545474408,0.8303,2716.6,2716.1,3.68166]
[1739545474613,0.8303,2716.6,2716.2,3.68156]
[1739545474793,0.8303,2717.0,2716.1,0.55]
[1739545475104,0.8303,2717.0,2716.5,3.68111]
[1739545475307,7.5109,2717.0,2716.5,3.68119]
[1739545475611,7.5109,2717.0,2716.3,3.6814]
[1739545475612,3.0,2716.8,2716.3,3.6814]
[1739545475786,3.0,2716.8,2716.3,7.36279]
[1739545476139,3.0,2716.8,2716.4,3.68132]
[1739545476458,0.8019,2717.6,2717.1,3.68031]
[1739545476663,3.68005,2717.4,2716.9,3.68058]
[1739545476860,3.6799,2717.5,2716.9,3.68058]
[1739545477060,3.0,2717.4,2717.0,3.68048]
[1739545477213,4.4817,2717.6,2717.1,3.68032]
[1739545477214,0.8019,2717.6,2717.1,3.68032]
[1739545477655,3.0,2717.5,2717.1,3.68032]
[1739545477859,0.8019,2717.6,2716.7,3.68085]
[1739545478082,0.8019,2717.6,2716.2,4.49978]
[1739545478083,3.68089,2716.8,2716.2,4.49978]
[1739545478256,3.68148,2716.3,2715.9,0.8182]
[1739545478470,0.02749637,2716.2,2715.8,3.68215]
[1739545478768,0.8019,2716.3,2715.9,3.68195]
[1739545478918,0.8019,2716.3,2715.9,3.68201]
[1739545479483,4.48338,2716.3,2715.8,3.68208]
[1739545479783,1.618361,2716.3,2715.3,9.5682]
[1739545479992,3.6821,2715.9,2715.4,3.68256]
[1739545480194,0.8019,2715.7,2715.0,0.8182]
[1739545480390,3.70991637,2715.6,2714.7,3.68364]
[1739545480687,3.0,2715.5,2714.9,3.68329]
[1739545480845,3.71030637,2715.4,2714.6,0.8182]
[1739545481044,3.68305,2715.2,2714.5,3.68385]
[1739545481272,3.0,2715.4,2714.2,8.75]
[1739545481273,3.68324,2715.0,2714.2,8.75]
[1739545481474,3.68395,2714.5,2713.9,4.50293]
[1739545481784,3.71162637,2714.4,2713.7,3.68487]
[1739545481947,3.68367,2714.7,2713.7,3.68487]
[1739545482145,3.0,2714.5,2713.8,0.368487]
[1739545482376,0.02749637,2714.4,2713.7,3.68494]
[1739545482576,0.8019,2714.2,2713.6,3.68514]
[1739545483009,3.8019,2714.5,2713.5,4.37037749]
[1739545483222,3.8019,2714.5,2714.0,3.68459]
[1739545483353,3.8019,2714.5,2713.9,3.68462]
[1739545483550,3.8019,2714.5,2714.1,3.68446]
[1739545483751,3.8019,2714.5,2714.2,3.68431]
[1739545484001,3.0,2714.5,2714.2,3.68431]
[1739545484151,5.837,2714.8,2714.0,0.5575]
[1739545484359,5.837,2714.8,2714.7,3.68364]
[1739545484556,5.837,2714.8,2714.7,4.977876]
[1739545485303,5.837,2714.8,2714.7,4.970376]
[1739545486565,4.48419,2715.7,2714.7,4.970376]
[1739545486566,0.8019,2715.7,2715.3,3.68277]
[1739545486772,0.8019,2715.7,2715.0,0.565]
[1739545486990,0.8019,2715.7,2715.3,3.68273]
[1739545487358,0.8019,2715.7,2715.3,7.36546]
[1739545487597,0.8019,2715.7,2715.2,0.55]
[1739545487791,1.18209,2715.7,2714.9,12.43334]
[1739545487958,0.8019,2715.7,2714.9,8.75]
[1739545488164,0.8019,2716.2,2715.2,0.55]
[1739545488502,3.0,2716.0,2715.4,3.68261]
[1739545488667,3.68198,2716.0,2715.4,3.68261]
[1739545488856,4.48359,2716.2,2715.6,3.68233]
[1739545489053,4.48359,2716.2,2715.2,1.40502516]
[1739545489291,4.48359,2716.2,2715.5,7.36492]
[1739545489594,4.48359,2716.2,2715.6,3.68241]
[1739545489794,4.48359,2716.2,2715.4,3.68258]
[1739545489795,3.68189,2716.0,2715.4,3.68258]
[1739545490115,3.0,2716.0,2715.5,3.68245]
[1739545490407,0.8019,2716.2,2715.8,3.68205]
[1739545490615,9.52041,2716.4,2715.7,3.6822]
[1739545490910,0.0075,2717.3,2715.7,3.6822]
[1739545490911,3.6808,2716.8,2716.2,3.68159]
[1739545491120,3.68074,2716.9,2716.3,3.68144]
[1739545491263,3.7977,2717.0,2716.5,3.68118]
[1739545491525,0.7977,2717.0,2716.8,3.68075]
[1739545491839,5.839,2717.3,2716.9,3.68058]
[1739545492262,5.839,2717.3,2716.8,3.68076]
[1739545492571,5.839,2717.3,2717.0,3.6805]
[1739545492769,5.839,2717.3,2716.9,3.68064]
[1739545493633,5.839,2717.3,2717.0,3.68049]
[1739545493838,5.839,2717.3,2717.1,3.68031]
[1739545494040,5.839,2717.3,2717.0,3.68049]
[1739545494259,5.839,2717.3,2716.8,3.68067]
[1739545495056,5.839,2717.3,2716.6,0.0075]
[1739545495217,5.839,2717.3,2717.1,3.68038]
[1739545495412,5.839,2717.3,2716.9,3.68055]
[1739545496257,5.839,2717.3,2716.7,1.2306872]
[1739545496465,5.839,2717.3,2717.1,3.68028]
[1739545496967,5.839,2717.3,2717.2,3.68025]
[1739545497123,5.839,2717.3,2717.1,3.68028]
[1739545497553,5.839,2717.3,2716.9,3.68062]
[1739545497756,5.839,2717.3,2717.0,3.68051]
[1739545498025,5.839,2717.3,2717.1,3.68037]
[1739545498573,5.839,2717.3,2717.2,3.68025]
[1739545498758,5.839,2717.3,2717.2,4.416312]
[1739545499952,5.839,2717.3,2717.2,4.973812]
[1739545500299,0.8326,2718.9,2717.5,0.0075]
[1739545500453,0.8326,2718.9,2717.9,3.67931]
[1739545500810,0.8326,2718.9,2718.6,3.67836]
[1739545500964,0.9976,2719.0,2718.9,3.67795]
[1739545501147,1e-05,2719.0,2718.9,5.02365]
[1739545501354,1e-05,2719.0,2718.9,5.06042611]
[1739545501547,1e-05,2719.0,2718.9,13.81042611]
[1739545501776,1e-05,2719.0,2718.9,11.85205061]
[1739545501978,1e-05,2719.0,2718.9,9.3075]
[1739545502176,1e-05,2719.0,2718.4,8.75]
[1739545502381,1e-05,2719.0,2718.6,3.67826]
[1739545502582,1e-05,2719.0,2718.6,0.5575]
[1739545502900,3.6782,2718.8,2718.4,8.75]
[1739545503106,4.413805,2718.8,2718.1,3.67892]
[1739545503401,4.413805,2718.8,2718.2,3.67888]
[1739545503821,7.35685,2718.6,2717.9,12.42924]
[1739545504098,0.86009637,2718.7,2717.4,8.75457604]
[1739545504099,3.67905,2718.1,2717.5,3.67976]
[1739545504456,3.67873,2718.4,2717.5,3.67985]
[1739545504693,4.046663,2718.3,2717.7,3.67948]
[1739545504863,0.8326,2718.7,2717.5,0.015]
[1739545505064,1e-05,2719.0,2718.3,3.67864]
[1739545505401,3.67797,2718.9,2718.3,3.67864]
[1739545505608,1e-05,2719.0,2718.3,3.67864]
[1739545505984,3.67805,2718.9,2718.3,3.67864]
[1739545506203,0.02749637,2718.8,2717.9,12.42925]
[1739545506363,0.451066,2718.9,2717.9,12.42925]
[1739545506364,3.67862,2718.5,2717.9,12.42925]
[1739545506595,3.0,2718.8,2717.9,8.75]
[1739545506799,1e-05,2719.0,2718.0,0.59429091]
[1739545506993,3.6781,2718.8,2718.0,4.23658]
[1739545507193,3.67891,2718.2,2717.9,8.75]
[1739545507502,3.67891,2718.2,2717.6,3.67962]
[1739545507503,3.67891,2718.2,2717.6,3.6797]
[1739545507704,4.48655,2718.1,2717.4,3.67998]
[1739545507905,3.67948,2717.8,2717.3,8.75]
[1739545508136,3.67992,2717.5,2716.9,3.68055]
[1739545508287,3.67992,2717.5,2716.7,12.43089]
[1739545508288,3.67951,2717.8,2716.8,0.5575]
[1739545508489,3.67968,2717.7,2717.0,3.6804]
[1739545508837,3.67979,2717.6,2716.9,3.68053]
[1739545509036,3.67962,2717.7,2716.9,4.92483272]
[1739545509340,0.02749637,2717.6,2717.2,3.68016]
[1739545509494,3.68004,2717.4,2716.8,3.68073]
[1739545509693,3.68004,2717.4,2716.6,5.57231604]
[1739545509694,3.68017,2717.3,2716.7,3.68091]
[1739545509891,3.68061,2717.0,2716.4,3.68124]
[1739545510193,3.6808,2716.8,2716.0,3.68184]
[1739545510393,3.68129,2716.5,2715.8,3.68203]
[1739545510609,3.68129,2716.5,2715.8,7.36409]
[1739545510836,3.68138,2716.4,2715.8,4.418439]
[1739545511048,0.8075,2716.7,2715.5,3.68251]
[1739545511049,3.68157,2716.3,2715.5,3.68251]
[1739545511253,3.68157,2716.3,2715.7,3.68227]
[1739545511454,3.68176,2716.1,2715.5,7.36497]
[1739545511618,3.68163,2716.2,2715.6,3.6824]
[1739545511957,3.68151,2716.3,2715.6,3.68233]
[1739545512119,3.68151,2716.3,2715.7,3.68216]
[1739545512315,3.68151,2716.3,2715.7,3.68229]
[1739545512535,3.68151,2716.3,2715.5,3.68247]
[1739545512735,3.68151,2716.3,2715.6,3.68241]
[1739545513054,3.68151,2716.3,2715.6,3.68232]
[1739545513361,6.68135,2716.4,2715.7,3.68221]
[1739545513655,0.8075,2716.7,2715.7,0.368221]
[1739545513834,4.48845,2716.7,2715.6,0.5575]
[1739545514081,3.0,2716.5,2715.9,3.68192]
[1739545514666,6.6813,2716.5,2715.7,3.68222]
[1739545514854,3.68137,2716.4,2715.8,3.68213]
[1739545515050,0.02749637,2716.3,2715.8,3.68213]
[1739545515254,6.6813,2716.5,2715.9,3.68189]
[1739545515450,3.0,2716.5,2716.1,3.68174]
[1739545515651,3.0,2716.5,2715.9,4.050079]
[1739545515856,3.68138,2716.4,2715.9,0.368189]
[1739545516135,3.8075,2716.7,2716.1,3.68167]
[1739545516370,7.48851,2716.7,2716.1,3.68167]
[1739545516554,3.0,2716.5,2716.0,3.68187]
[1739545516755,0.8075,2716.7,2716.0,0.7732169]
[1739545516951,0.8075,2716.7,2716.2,3.68151]
[1739545517186,4.48849,2716.7,2716.2,3.68151]
[1739545517352,4.48849,2716.7,2716.0,8.1368069]
[1739545517554,7.48849,2716.7,2716.0,8.1368069]
[1739545517768,3.68108,2716.6,2716.0,8.1368069]
[1739545517954,3.8075,2716.7,2715.5,4.47821]
[1739545518282,3.8075,2716.7,2716.3,3.6814]
[1739545518584,3.8075,2716.7,2716.1,3.68165]
[1739545518585,0.02749637,2716.6,2715.7,3.68229]
[1739545518786,0.02749637,2716.6,2716.1,3.68162]
[1739545518970,3.8075,2716.7,2716.3,3.68137]
[1739545519173,3.8075,2716.7,2716.3,7.36275]
[1739545519372,3.8075,2716.7,2716.3,4.2390275]
[1739545519578,0.8075,2716.7,2716.5,3.6811]
[1739545519887,0.8075,2716.7,2716.3,4.2390375]
[1739545520059,0.8075,2716.7,2716.3,7.9204175]
[1739545520262,0.8075,2716.7,2716.3,7.9203975]
[1739545520461,0.8075,2716.7,2716.5,3.68113]
[1739545520648,0.8075,2716.7,2716.4,3.68123]
[1739545521151,0.8288,2717.0,2716.5,3.68112]
[1739545521474,0.8288,2717.0,2716.6,3.68097]
[1739545521693,0.8288,2717.0,2716.7,3.68084]
[1739545521991,5.836,2717.2,2716.9,3.68063]
[1739545522183,5.836,2717.2,2716.9,3.68058]
[1739545522386,5.836,2717.2,2716.9,7.36116]
[1739545522589,5.836,2717.2,2717.0,3.68052]
[1739545522808,5.836,2717.2,2716.9,3.68058]
[1739545523090,5.836,2717.2,2716.9,4.1222561]
[1739545523257,0.8288,2717.5,2717.1,3.68029]
[1739545523710,3.67949,2717.8,2716.9,4.1222561]
[1739545523711,0.8288,2717.9,2716.9,0.4416761]
[1739545523876,4.50741,2718.5,2717.8,3.67935]
[1739545524206,7.35744,2718.4,2717.8,3.67935]
[1739545524508,3.6788,2718.3,2717.8,3.67935]
[1739545524679,3.67871,2718.4,2717.8,3.67935]
[1739545524879,4.50743,2718.5,2717.8,3.67935]
[1739545525076,0.02749637,2718.4,2717.6,3.67971]
[1739545525276,3.67891,2718.2,2717.6,3.67971]
[1739545525477,3.0,2718.3,2717.5,3.67981]
[1739545525793,3.67912,2718.1,2717.5,3.67976]
[1739545526003,3.6792,2718.0,2717.4,8.75]
[1739545526301,3.67864,2718.4,2717.8,3.67935]
[1739545526499,3.0,2718.3,2717.8,3.67935]
[1739545527010,3.67878,2718.3,2717.8,3.67935]
[1739545529901,0.8288,2717.5,2717.1,3.68032]
[1739545530096,0.8288,2717.9,2716.9,4.23066]
[1739545530343,0.8288,2717.9,2717.4,3.6799]
[1739545530661,3.67945,2717.8,2717.2,7.36036]
[1739545530817,3.67972,2717.6,2717.0,3.68042]
[1739545531022,7.35906,2717.8,2717.2,3.68014]
[1739545531321,3.67949,2717.8,2717.2,3.68014]
[1739545531541,3.67961,2717.7,2717.0,3.68052]
[1739545531750,3.67961,2717.7,2717.1,3.68038]
[1739545532120,3.67979,2717.6,2717.0,5.10850837]
[1739545532300,3.67979,2717.6,2717.0,8.78893837]
[1739545532502,0.07905385,2717.5,2717.2,3.68025]
[1739545532736,0.07905385,2717.5,2717.4,3.67998]
[1739545532964,4.50745,2718.4,2717.2,3.68025]
[1739545532965,3.75136737,2718.6,2717.2,3.68025]
[1739545533122,0.07835916,2717.5,2716.9,8.75]
[1739545533309,3.8288,2717.6,2716.8,3.68068]
[1739545533505,3.8288,2717.6,2717.2,3.68025]
[1739545533862,3.8288,2717.6,2717.0,3.68046]
[1739545533863,7.01e-06,2717.5,2717.4,9.44704271]
[1739545534043,0.07182926,2717.5,2717.4,9.44704271]
[1739545534245,3.6787,2718.4,2717.8,3.67933]
[1739545534540,4.50771,2718.2,2717.5,8.75]
[1739545534707,3.67915,2718.1,2717.5,12.42977]
[1739545534903,3.7462458,2718.1,2717.1,5.20206271]
[1739545535144,0.0671258,2718.1,2718.0,3.67917]
[1739545535300,0.0671258,2718.1,2718.0,8.05103271]
[1739545535499,5.837,2718.8,2718.7,3.67822]
[1739545535930,5.837,2718.8,2718.5,3.67837]
[1739545535931,5.90209141,2718.8,2718.5,3.67837]
[1739545536103,5.837,2718.8,2718.7,3.67822]
[1739545536682,5.90161974,2718.8,2718.5,3.67837]
[1739545537333,5.90161974,2718.8,2718.6,3.67832]
[1739545537538,5.90161974,2718.8,2718.7,3.67822]
[1739545537734,5.90161974,2718.8,2718.5,3.67837]
[1739545538047,5.90161974,2718.8,2718.6,3.67827]
[1739545538624,5.90161974,2718.8,2718.7,3.67822]
[1739545539517,0.06461974,2718.8,2718.7,9.39888271]
[1739545539717,0.24961,2719.0,2718.9,3.67795]
[1739545539922,1.21522805,2720.2,2719.0,0.0075]
[1739545540154,3.67639,2720.1,2719.5,3.67701]
[1739545540457,3.67657,2720.0,2719.3,3.6773]
[1739545540779,0.05805514,2720.1,2719.5,3.67706]
[1739545540990,0.05552644,2719.9,2719.7,3.67675]
[1739545541169,1.21522805,2720.2,2719.5,3.67708]
[1739545541170,0.05376417,2719.8,2719.5,3.67708]
[1739545541315,3.67649,2720.0,2719.5,3.67708]
[1739545541515,4.89151805,2720.2,2719.5,3.67708]
[1739545541778,0.05184039,2719.9,2719.3,12.42735]
[1739545542077,1.21522805,2720.2,2719.3,12.42735]
[1739545542078,0.05173203,2719.8,2719.3,12.42735]
[1739545542455,3.67656,2720.0,2719.3,12.42735]
[1739545542456,3.67656,2720.0,2719.4,3.67715]
[1739545542659,0.05162365,2719.7,2719.3,12.42735]
[1739545542862,3.67656,2720.0,2719.5,3.67712]
[1739545543181,3.67635,2720.1,2719.5,3.67712]
[1739545543339,0.05194876,2720.0,2719.5,3.67712]
[1739545543718,0.05194876,2720.0,2719.7,0.7838]
[1739545543932,0.05194876,2720.0,2719.9,3.6766]
[1739545544240,9.50993,2720.4,2719.8,3.6767]
[1739545544411,0.05269437,2720.3,2719.8,3.67665]
[1739545545150,3.67629,2720.2,2719.6,3.67693]
[1739545545351,3.0,2720.0,2719.1,0.9315]
[1739545545559,3.72895401,2719.9,2719.1,0.9315]
[1739545545791,0.05235401,2719.9,2719.1,0.9315]
[1739545546006,0.05235401,2719.9,2719.4,3.6772]
[1739545546151,0.05235401,2719.9,2719.8,0.7913]
[1739545546350,3.67573,2720.6,2720.0,3.67635]
[1739545546553,3.67597,2720.4,2719.8,3.67666]
[1739545546787,0.05033769,2720.3,2719.9,3.67654]
[1739545546970,0.05033769,2720.3,2720.0,3.67646]
[1739545547184,7.35147,2720.6,2720.0,3.67646]
[1739545547390,0.04846845,2720.5,2720.0,3.67646]
[1739545547608,0.04846845,2720.5,2720.0,7.35285]
[1739545547899,3.67594,2720.4,2719.7,4.37186271]
[1739545548107,0.04846845,2720.5,2719.7,4.37186271]
[1739545548421,0.04852695,2720.4,2719.9,3.67651]
[1739545548569,0.04852695,2720.4,2719.7,8.04868271]
[1739545548773,3.6762,2720.2,2719.6,8.75]
[1739545549035,0.8325,2720.1,2719.6,3.67689]
[1739545549308,0.04812388,2720.0,2719.6,3.67689]
[1739545549911,0.04812388,2720.0,2719.7,3.67687]
[1739545550281,0.04812388,2720.0,2719.5,3.67706]
[1739545550812,0.04812388,2720.0,2719.8,3.67671]
[1739545551014,3.67627,2720.2,2719.5,3.67714]
[1739545551171,0.04645365,2720.1,2719.7,3.6768]
[1739545551376,10.35229,2720.3,2719.7,3.6768]
[1739545551586,3.67641,2720.1,2719.5,3.67706]
[1739545551771,0.04640599,2720.0,2719.5,3.67706]
[1739545551990,0.04640599,2720.0,2719.7,3.67685]
[1739545552166,3.67643,2720.1,2719.2,3.67755]
[1739545552372,0.04613283,2720.0,2719.5,3.67705]
[1739545552870,3.67667,2719.9,2719.3,3.67729]
[1739545553093,3.70423637,2719.8,2719.1,3.67761]
[1739545553299,0.04592727,2719.8,2719.4,3.67719]
[1739545553548,0.04592727,2719.8,2719.2,3.67746]
[1739545553833,0.04592727,2719.8,2719.3,3.67741]
[1739545554175,0.04592727,2719.8,2719.5,3.67707]
[1739545554402,0.04592727,2719.8,2719.3,3.67733]
[1739545554600,3.67698,2719.7,2719.2,3.67753]
[1739545554802,0.8314,2719.9,2719.4,3.6772]
[1739545554803,0.04607493,2719.6,2719.4,3.6772]
[1739545555092,0.8314,2719.9,2719.5,3.67714]
[1739545555296,0.8314,2719.9,2719.4,0.03676931]
[1739545555524,0.8314,2719.9,2719.5,3.67701]
[1739545555709,3.0,2720.0,2719.5,3.67701]
[1739545555922,3.0,2720.0,2719.4,0.0367685]
[1739545556128,4.50774,2720.1,2719.6,3.67696]
[1739545556442,0.02749637,2720.0,2719.2,3.67754]
[1739545556655,3.67694,2719.7,2719.0,3.67772]
[1739545556791,3.67694,2719.7,2719.1,3.6776]
[1739545557206,4.044634,2719.7,2718.8,13.87486271]
[1739545557407,3.67728,2719.4,2718.8,16.10597]
[1739545557726,3.67737,2719.4,2718.9,3.6779]
[1739545558127,0.04591619,2719.3,2719.0,3.67781]
[1739545558623,3.72334619,2719.3,2718.8,3.67798]
[1739545558823,3.72334619,2719.3,2718.8,3.67802]
[1739545558824,0.04591619,2719.3,2718.8,3.67802]
[1739545559128,0.04591619,2719.3,2718.9,3.67787]
[1739545559423,0.04591619,2719.3,2719.2,3.67755]
[1739545559620,3.67682,2719.8,2719.3,3.67735]
[1739545559824,0.0456089,2719.7,2719.0,0.5575]
[1739545560024,0.8314,2719.9,2719.2,0.0075]
[1739545560226,0.38353263,2720.2,2720.1,3.67633]
[1739545560609,0.8314,2720.9,2720.1,0.03675901]
[1739545560925,4.50666,2720.9,2720.3,3.67593]
[1739545561124,4.50666,2720.9,2720.4,3.67584]
[1739545561328,0.8314,2720.9,2719.8,8.75]
[1739545561628,0.8314,2720.2,2719.6,3.67692]
[1739545561926,0.04273266,2720.1,2719.6,3.67692]
[1739545562127,3.67663,2719.9,2719.4,8.75]
[1739545562297,3.67663,2719.9,2719.1,3.67756]
[1739545562503,0.8314,2720.2,2719.3,3.6774]
[1739545562504,0.04081382,2719.8,2719.3,3.6774]
[1739545562705,3.67697,2719.7,2719.1,3.6776]
[1739545562913,7.72575838,2719.7,2719.1,3.6776]
[1739545563239,3.67714,2719.5,2718.8,12.42798]
[1739545563439,3.67764,2719.2,2718.6,0.0075]
[1739545563730,0.03974132,2719.1,2718.7,3.67819]
[1739545564031,3.6775,2719.3,2718.7,7.35638]
[1739545564228,0.03990363,2719.2,2718.7,7.35634]
[1739545564433,0.03990363,2719.2,2718.7,3.67815]
[1739545564630,0.03990363,2719.2,2718.7,3.67813]
[1739545564804,0.03990363,2719.2,2718.7,7.35626]
[1739545565005,0.03990363,2719.2,2718.8,3.67795]
[1739545565310,0.8173,2719.6,2719.1,3.67758]
[1739545565641,0.8173,2719.6,2718.9,3.67791]
[1739545565844,3.6773,2719.4,2718.9,3.67791]
[1739545566047,0.83262334,2719.3,2718.5,3.67842]
[1739545566253,0.83262334,2719.3,2718.4,12.42854]
[1739545566254,3.67774,2719.1,2718.6,3.67833]
[1739545566547,0.03963735,2719.0,2718.7,9.315]
[1739545566837,0.03963735,2719.0,2718.9,4.42875]
[1739545567005,6.67698,2719.7,2719.1,3.67768]
[1739545567461,0.03886073,2719.6,2718.9,0.7508]
[1739545567666,0.03886073,2719.6,2719.1,3.67761]
[1739545567862,3.67688,2719.7,2719.1,3.67761]
[1739545568097,0.03853971,2719.5,2719.4,3.67728]
[1739545568293,0.03847893,2719.6,2719.5,3.67714]
[1739545568458,0.7927,2720.2,2719.9,3.6765]
[1739545568965,0.03771125,2720.1,2720.0,3.67647]
[1739545569368,0.7927,2720.6,2719.9,3.71326067]
[1739545569564,0.7927,2720.6,2720.3,3.67606]
[1739545569768,0.7927,2721.0,2720.3,3.67601]
[1739545569952,0.03826809,2720.5,2720.4,3.67593]
[1739545570153,3.67526,2720.9,2720.3,3.67597]
[1739545570345,4.489563,2720.9,2720.3,3.67597]
[1739545570554,0.7927,2721.4,2720.9,3.67516]
[1739545570863,0.7927,2721.4,2721.0,3.67509]
[1739545571093,0.7927,2721.4,2721.1,3.67496]
[1739545572204,3.8734,2722.3,2721.3,3.6746]
[1739545572205,3.67379,2722.0,2721.3,3.6746]
[1739545572417,3.67379,2722.0,2721.1,3.67486]
[1739545572573,3.67354,2722.2,2721.3,3.67465]